[Event "*** Titled Tuesday Blitz"]
[Site "Chess.com"]
[Date "2021.02.09"]
[Round "4"]
[White "EdmundPlayer"]
[Black "eCztery"]
[Result "1/2-1/2"]
[WhiteElo "2179"]
[BlackElo "2477"]
[TimeControl "180+1"]
[EndTime "10:42:15 PST"]
[Termination "Game drawn by agreement"]

1. e4 {[%clk 0:03:00.9]} 1... c5 {[%clk 0:02:56.2]} 2. Nf3 {[%clk 0:02:59.8]}
2... g6 {[%clk 0:02:52.2]} 3. c4 {[%clk 0:02:45.8]} 3... Nc6 {[%clk 0:02:50.4]}
4. d4 {[%clk 0:02:43.7]} 4... cxd4 {[%clk 0:02:51.3]} 5. Nxd4 {[%clk 0:02:44.1]}
5... Nf6 {[%clk 0:02:46.6]} 6. Nc3 {[%clk 0:02:42.8]} 6... Nxd4 {[%clk
0:02:45.8]} 7. Qxd4 {[%clk 0:02:42.2]} 7... d6 {[%clk 0:02:46.3]} 8. Be3 {[%clk
0:02:38.6]} 8... Bg7 {[%clk 0:02:46]} 9. f3 {[%clk 0:02:38.6]} 9... O-O {[%clk
0:02:46.2]} 10. Qd2 {[%clk 0:02:38.6]} 10... a5 {[%clk 0:02:46.8]} 11. g3 {[%clk
0:02:26.4]} 11... a4 {[%clk 0:02:44.6]} 12. Be2 {[%clk 0:02:07.4]} 12... Qa5
{[%clk 0:02:43.8]} 13. O-O {[%clk 0:02:04.7]} 13... Be6 {[%clk 0:02:37.5]} 14.
Nd5 {[%clk 0:01:41.5]} 14... Qxd2 {[%clk 0:02:29.5]} 15. Nxe7+ {[%clk
0:01:36.1]} 15... Kh8 {[%clk 0:02:29.7]} 16. Bxd2 {[%clk 0:01:36.7]} 16... Rfe8
{[%clk 0:02:29.9]} 17. Nd5 {[%clk 0:01:34.3]} 17... Nxd5 {[%clk 0:02:18.2]} 18.
cxd5 {[%clk 0:01:32.7]} 18... Bxd5 {[%clk 0:02:17.5]} 19. Bb5 {[%clk 0:01:23.4]}
19... Bc6 {[%clk 0:02:13.1]} 20. Bxc6 {[%clk 0:01:22.8]} 20... bxc6 {[%clk
0:02:14]} 21. Bc3 {[%clk 0:01:13.6]} 21... Reb8 {[%clk 0:02:11.1]} 22. Rfd1
{[%clk 0:01:09.2]} 22... Rxb2 {[%clk 0:01:59.1]} 23. Bxb2 {[%clk 0:01:06.6]}
23... Bxb2 {[%clk 0:02:00]} 24. Rab1 {[%clk 0:01:06.7]} 24... a3 {[%clk
0:01:55.7]} 25. Rxd6 {[%clk 0:01:05.5]} 25... c5 {[%clk 0:01:54.8]} 26. Rbd1
{[%clk 0:00:48.1]} 26... Kg7 {[%clk 0:01:49.8]} 27. Rc6 {[%clk 0:00:43.3]} 27...
Ra4 {[%clk 0:01:45.6]} 28. Rxc5 {[%clk 0:00:37]} 28... Bd4+ {[%clk 0:01:44.4]}
29. Rxd4 {[%clk 0:00:36]} 29... Rxd4 {[%clk 0:01:45.3]} 30. Rc2 {[%clk
0:00:26.9]} 30... Rb4 {[%clk 0:01:35.3]} 31. Re2 {[%clk 0:00:26.8]} 31... Kf6
{[%clk 0:01:32.1]} 32. Kf2 {[%clk 0:00:26.8]} 32... Ke5 {[%clk 0:01:28.4]} 33.
Rd2 {[%clk 0:00:25.3]} 33... f5 {[%clk 0:01:18.5]} 34. Ke3 {[%clk 0:00:16.6]}
34... fxe4 {[%clk 0:01:14.1]} 35. fxe4 {[%clk 0:00:12.6]} 35... Rxe4+ {[%clk
0:01:15]} 36. Kf3 {[%clk 0:00:11.4]} 36... Rb4 {[%clk 0:01:13]} 37. Rd3 {[%clk
0:00:11.3]} 37... Ra4 {[%clk 0:01:10.2]} 38. Rb3 {[%clk 0:00:11.5]} 38... h5
{[%clk 0:01:08.8]} 39. h4 {[%clk 0:00:11.5]} 39... Ra5 {[%clk 0:01:06.8]} 40.
Rb6 {[%clk 0:00:11.2]} 40... Kd4 {[%clk 0:01:03.9]} 41. Rxg6 {[%clk 0:00:10.8]}
41... Kc3 {[%clk 0:01:01]} 42. Rg5 {[%clk 0:00:11.5]} 42... Ra6 {[%clk
0:00:52.9]} 43. Rxh5 {[%clk 0:00:11.8]} 43... Kb2 {[%clk 0:00:53.8]} 44. Re5
{[%clk 0:00:10.2]} 44... Kxa2 {[%clk 0:00:52.6]} 45. h5 {[%clk 0:00:08.6]} 45...
Kb2 {[%clk 0:00:51.3]} 46. g4 {[%clk 0:00:07.4]} 46... Kc3 {[%clk 0:00:49.6]}
47. Re3+ {[%clk 0:00:05.4]} 47... Kd4 {[%clk 0:00:49.9]} 48. Re1 {[%clk
0:00:05.5]} 48... a2 {[%clk 0:00:41.3]} 49. Ra1 {[%clk 0:00:06]} 49... Ke5
{[%clk 0:00:42.2]} 50. Kg3 {[%clk 0:00:05.1]} 50... Kf6 {[%clk 0:00:40.2]} 51.
Kh4 {[%clk 0:00:05.1]} 51... Ra4 {[%clk 0:00:38.3]} 52. Rf1+ {[%clk 0:00:05.6]}
52... Kg7 {[%clk 0:00:38.5]} 53. Ra1 {[%clk 0:00:06.4]} 53... Kh6 {[%clk
0:00:38.4]} 54. Kh3 {[%clk 0:00:03.7]} 54... Kg5 {[%clk 0:00:39.3]} 55. Kh2
{[%clk 0:00:02.3]} 55... Ra3 {[%clk 0:00:26.6]} 56. Kg2 {[%clk 0:00:01.6]} 56...
Kh6 {[%clk 0:00:16.8]} 57. Kh2 {[%clk 0:00:01.4]} 57... Ra4 {[%clk 0:00:16.1]}
58. Kg2 {[%clk 0:00:02.1]} 58... Kg5 {[%clk 0:00:17]} 59. Kh2 {[%clk 0:00:02.5]}
59... Kf6 {[%clk 0:00:15.8]} 60. Kh3 {[%clk 0:00:02.7]} 60... Ke5 {[%clk
0:00:15.2]} 61. Kh2 {[%clk 0:00:03.6]} 61... Kf4 {[%clk 0:00:15.5]} 62. Kh3
{[%clk 0:00:04.5]} 62... Ra3+ {[%clk 0:00:15.5]} 63. Kh2 {[%clk 0:00:05.2]}
63... Kxg4 {[%clk 0:00:16.4]} 64. h6 {[%clk 0:00:05.4]} 64... Ra8 {[%clk
0:00:15.3]} 65. Kg2 {[%clk 0:00:05.3]} 65... Kf5 {[%clk 0:00:15.6]} 66. h7
{[%clk 0:00:06.2]} 66... Kg6 {[%clk 0:00:12.8]} 67. h8=Q {[%clk 0:00:07.1]}
67... Rxh8 {[%clk 0:00:12.9]} 68. Rxa2 {[%clk 0:00:07.8]} 68... Rf8 {[%clk
0:00:13.8]} 69. Ra6+ {[%clk 0:00:08.1]} 69... Kg5 {[%clk 0:00:14.4]} 70. Ra5+
{[%clk 0:00:08.7]} 70... Kg4 {[%clk 0:00:14.9]} 71. Ra4+ {[%clk 0:00:09.3]}
71... Kf5 {[%clk 0:00:15.1]} 72. Ra5+ {[%clk 0:00:10.2]} 72... Ke4 {[%clk
0:00:15.6]} 73. Ra6 {[%clk 0:00:10.8]} 73... Rg8+ {[%clk 0:00:15.3]} 74. Kf2
{[%clk 0:00:11.4]} 74... Rb8 {[%clk 0:00:14.7]} 75. Kg3 {[%clk 0:00:10.8]} 75...
Rb3+ {[%clk 0:00:14.2]} 76. Kg4 {[%clk 0:00:11.3]} 76... Rb1 {[%clk 0:00:15.1]}
77. Kg5 {[%clk 0:00:11.3]} 77... Rg1+ {[%clk 0:00:14.6]} 78. Kf6 {[%clk
0:00:11.5]} 78... Rh1 {[%clk 0:00:15.5]} 79. Re6+ {[%clk 0:00:11.5]} 79... Kd5
{[%clk 0:00:15.6]} 80. Re2 {[%clk 0:00:11.6]} 80... Rh6+ {[%clk 0:00:15.3]} 81.
Kg5 {[%clk 0:00:11.7]} 81... Rh8 {[%clk 0:00:15.6]} 82. Kg6 {[%clk 0:00:12]}
82... Rg8+ {[%clk 0:00:15.1]} 83. Kf7 {[%clk 0:00:12]} 83... Rg1 {[%clk
0:00:16]} 84. Rd2+ {[%clk 0:00:11.7]} 84... Ke5 {[%clk 0:00:15.4]} 85. Ra2
{[%clk 0:00:12.1]} 85... Rf1+ {[%clk 0:00:14.3]} 86. Ke7 {[%clk 0:00:11.2]}
86... Rb1 {[%clk 0:00:14.3]} 87. Ra5+ {[%clk 0:00:11.1]} 87... Kd4 {[%clk
0:00:14.8]} 88. Ra4+ {[%clk 0:00:11.5]} 88... Kc5 {[%clk 0:00:14.7]} 89. Ra5+
{[%clk 0:00:12.1]} 89... Kb6 {[%clk 0:00:15.1]} 90. Rh5 {[%clk 0:00:12.6]} 90...
Re1+ {[%clk 0:00:14.9]} 91. Kd6 {[%clk 0:00:11.9]} 91... Rd1+ {[%clk 0:00:14.2]}
92. Ke5 {[%clk 0:00:11.9]} 92... Rb1 {[%clk 0:00:13.8]} 93. Ke4 {[%clk 0:00:12]}
93... Rb4+ {[%clk 0:00:13.3]} 94. Kd3 {[%clk 0:00:12.1]} 94... Rb3+ {[%clk
0:00:13.6]} 95. Kc2 {[%clk 0:00:12.1]} 95... Rg3 {[%clk 0:00:14]} 96. Kd2 {[%clk
0:00:12.1]} 96... Kc6 {[%clk 0:00:14.2]} 97. Ke2 {[%clk 0:00:12.2]} 97... Rg6
{[%clk 0:00:13.8]} 98. Rf5 {[%clk 0:00:12.1]} 98... Rd6 {[%clk 0:00:14.7]} 99.
Ra5 {[%clk 0:00:11.9]} 99... Kd7 {[%clk 0:00:15.5]} 100. Ra7+ {[%clk 0:00:11.8]}
100... Ke6 {[%clk 0:00:15.9]} 101. Rh7 {[%clk 0:00:12.2]} 101... Rd5 {[%clk
0:00:15.9]} 102. Rh6+ {[%clk 0:00:12.5]} 102... Kf7 {[%clk 0:00:16.3]} 103. Rh7+
{[%clk 0:00:12.8]} 103... Kg6 {[%clk 0:00:16.5]} 104. Ra7 {[%clk 0:00:13.1]}
104... Re5+ {[%clk 0:00:16.9]} 105. Kf2 {[%clk 0:00:13.5]} 105... Kf5 {[%clk
0:00:14.4]} 1/2-1/2

[Event "*** Titled Tuesday Blitz"]
[Site "Chess.com"]
[Date "2021.02.09"]
[Round "4"]
[White "kirillshevchenko"]
[Black "enriquetejedor"]
[Result "0-1"]
[WhiteElo "2801"]
[BlackElo "2542"]
[TimeControl "180+1"]
[EndTime "10:43:58 PST"]
[Termination "enriquetejedor won by resignation"]

1. c4 {[%clk 0:03:00.9]} 1... e6 {[%clk 0:02:52.9]} 2. e4 {[%clk 0:02:58.4]}
2... d5 {[%clk 0:02:52.4]} 3. cxd5 {[%clk 0:02:57.8]} 3... exd5 {[%clk
0:02:52.6]} 4. Qb3 {[%clk 0:02:58.2]} 4... dxe4 {[%clk 0:02:49]} 5. Bc4 {[%clk
0:02:55.6]} 5... Qd7 {[%clk 0:02:45.1]} 6. d3 {[%clk 0:02:44.4]} 6... Nc6 {[%clk
0:02:31.2]} 7. dxe4 {[%clk 0:02:42.9]} 7... Na5 {[%clk 0:02:25.2]} 8. Qc3 {[%clk
0:02:40.4]} 8... Nxc4 {[%clk 0:02:20.8]} 9. Qxc4 {[%clk 0:02:40.9]} 9... Qg4
{[%clk 0:02:11.6]} 10. Ne2 {[%clk 0:02:13.5]} 10... Nf6 {[%clk 0:01:55.5]} 11.
Nbc3 {[%clk 0:02:09.2]} 11... Bd6 {[%clk 0:01:39.1]} 12. O-O {[%clk 0:01:15.6]}
12... O-O {[%clk 0:01:37.3]} 13. f3 {[%clk 0:01:11.3]} 13... Qh5 {[%clk
0:01:21.1]} 14. Bf4 {[%clk 0:01:03.8]} 14... Be6 {[%clk 0:01:12.6]} 15. Qa4
{[%clk 0:00:44.3]} 15... Qc5+ {[%clk 0:01:03.5]} 16. Kh1 {[%clk 0:00:43.4]}
16... Rfd8 {[%clk 0:00:55.3]} 17. Rad1 {[%clk 0:00:37]} 17... h6 {[%clk
0:00:48.3]} 18. Bxd6 {[%clk 0:00:34.1]} 18... Rxd6 {[%clk 0:00:48.6]} 19. Rxd6
{[%clk 0:00:34.6]} 19... Qxd6 {[%clk 0:00:48.8]} 20. Rd1 {[%clk 0:00:35.1]}
20... Qe7 {[%clk 0:00:49.2]} 21. Nd4 {[%clk 0:00:29.3]} 21... c6 {[%clk
0:00:31.1]} 22. Nxe6 {[%clk 0:00:23.9]} 22... Qxe6 {[%clk 0:00:30.7]} 23. Qb4
{[%clk 0:00:24.3]} 23... b6 {[%clk 0:00:27]} 24. Rd6 {[%clk 0:00:24]} 24... c5
{[%clk 0:00:21.8]} 25. Rxe6 {[%clk 0:00:16.3]} 25... cxb4 {[%clk 0:00:21.3]} 26.
Re7 {[%clk 0:00:13.9]} 26... bxc3 {[%clk 0:00:12]} 27. bxc3 {[%clk 0:00:14.8]}
27... Rc8 {[%clk 0:00:11]} 28. Rxa7 {[%clk 0:00:14]} 28... Rxc3 {[%clk
0:00:11.1]} 29. h4 {[%clk 0:00:12.7]} 29... Nh5 {[%clk 0:00:11]} 30. Ra6 {[%clk
0:00:10.4]} 30... Rc1+ {[%clk 0:00:10.8]} 31. Kh2 {[%clk 0:00:10.1]} 31... Rb1
{[%clk 0:00:11.7]} 32. g3 {[%clk 0:00:08.7]} 32... Nf6 {[%clk 0:00:11.9]} 33.
Ra8+ {[%clk 0:00:06.7]} 33... Kh7 {[%clk 0:00:12]} 34. Ra7 {[%clk 0:00:07.6]}
34... Kg6 {[%clk 0:00:12.2]} 35. a4 {[%clk 0:00:08.1]} 35... h5 {[%clk
0:00:11.6]} 36. Rb7 {[%clk 0:00:07.8]} 36... Rb2+ {[%clk 0:00:11.3]} 37. Kh3
{[%clk 0:00:08]} 37... Rb4 {[%clk 0:00:12.2]} 38. Kg2 {[%clk 0:00:05.4]} 38...
Rxa4 {[%clk 0:00:12.2]} 39. Rxb6 {[%clk 0:00:05.5]} 39... Ra2+ {[%clk
0:00:13.1]} 40. Kh3 {[%clk 0:00:04.7]} 40... Kh7 {[%clk 0:00:13.6]} 41. Rb7
{[%clk 0:00:04.7]} 41... Kg6 {[%clk 0:00:10]} 42. Rb6 {[%clk 0:00:04.9]} 42...
Ra5 {[%clk 0:00:10.2]} 43. Kg2 {[%clk 0:00:02.5]} 43... Re5 {[%clk 0:00:08.6]}
44. Ra6 {[%clk 0:00:02.5]} 44... Re6 {[%clk 0:00:08.5]} 45. Ra7 {[%clk
0:00:02.3]} 45... Nh7 {[%clk 0:00:07.7]} 46. Kf2 {[%clk 0:00:02.7]} 46... f6
{[%clk 0:00:07.9]} 47. Ke3 {[%clk 0:00:02.4]} 47... Kh6 {[%clk 0:00:08.5]} 48.
f4 {[%clk 0:00:02.6]} 48... Nf8 {[%clk 0:00:08.9]} 49. Kf3 {[%clk 0:00:02.6]}
49... Kh7 {[%clk 0:00:08.8]} 50. Ra8 {[%clk 0:00:02.4]} 50... Nd7 {[%clk
0:00:08.4]} 51. Rd8 {[%clk 0:00:02.6]} 51... Nc5 {[%clk 0:00:08.6]} 52. Rd4
{[%clk 0:00:03.2]} 52... Ra6 {[%clk 0:00:08.9]} 53. e5 {[%clk 0:00:02.9]} 53...
fxe5 {[%clk 0:00:09]} 54. fxe5 {[%clk 0:00:03.7]} 54... Kg6 {[%clk 0:00:09.1]}
55. Rd5 {[%clk 0:00:03.4]} 55... Ne6 {[%clk 0:00:08.9]} 56. Rd3 {[%clk
0:00:01.9]} 56... Kf5 {[%clk 0:00:08.7]} 57. Ke3 {[%clk 0:00:01.7]} 57... Kxe5
{[%clk 0:00:08.8]} 58. Rb3 {[%clk 0:00:02.2]} 58... Rd6 {[%clk 0:00:08.1]} 59.
Rb5+ {[%clk 0:00:02.4]} 59... Rd5 {[%clk 0:00:08.4]} 60. Rb8 {[%clk 0:00:02.5]}
60... Kf6 {[%clk 0:00:08]} 61. Ke4 {[%clk 0:00:02.4]} 61... Re5+ {[%clk
0:00:08.2]} 62. Kf3 {[%clk 0:00:02.9]} 62... Nd4+ {[%clk 0:00:08.4]} 63. Kf4
{[%clk 0:00:02.9]} 63... Ne6+ {[%clk 0:00:08.6]} 64. Kf3 {[%clk 0:00:03.2]}
64... Rf5+ {[%clk 0:00:09.2]} 65. Ke3 {[%clk 0:00:03.1]} 65... g6 {[%clk
0:00:09]} 66. Re8 {[%clk 0:00:03]} 66... Re5+ {[%clk 0:00:09.1]} 67. Kf2 {[%clk
0:00:02.6]} 67... Ng7 {[%clk 0:00:09]} 68. Rf8+ {[%clk 0:00:02.5]} 68... Ke7
{[%clk 0:00:09.5]} 69. Ra8 {[%clk 0:00:02.8]} 69... Rf5+ {[%clk 0:00:09.6]} 70.
Kg2 {[%clk 0:00:03.1]} 70... Ne6 {[%clk 0:00:10.3]} 71. Rg8 {[%clk 0:00:02.4]}
71... Kf7 {[%clk 0:00:10.3]} 72. Ra8 {[%clk 0:00:02.9]} 72... Rd5 {[%clk
0:00:10.2]} 73. Ra6 {[%clk 0:00:02.9]} 73... Kf6 {[%clk 0:00:09.9]} 74. Kf3
{[%clk 0:00:03.5]} 74... Rd3+ {[%clk 0:00:10.1]} 75. Kg2 {[%clk 0:00:03.5]}
75... Rc3 {[%clk 0:00:10]} 76. Ra5 {[%clk 0:00:03.3]} 76... Rc5 {[%clk
0:00:09.6]} 77. Ra6 {[%clk 0:00:01.9]} 77... Kf5 {[%clk 0:00:10.1]} 78. Kf3
{[%clk 0:00:02]} 78... Rc3+ {[%clk 0:00:10.5]} 79. Kg2 {[%clk 0:00:02.5]} 79...
Re3 {[%clk 0:00:08.5]} 80. Ra5+ {[%clk 0:00:02.4]} 80... Re5 {[%clk 0:00:09]}
81. Ra4 {[%clk 0:00:02.4]} 81... Re4 {[%clk 0:00:07]} 82. Ra5+ {[%clk
0:00:02.5]} 82... Kg4 {[%clk 0:00:07.5]} 83. Kf2 {[%clk 0:00:02.4]} 83... Rb4
{[%clk 0:00:05.3]} 84. Re5 {[%clk 0:00:01.9]} 84... Rb2+ {[%clk 0:00:04.9]} 85.
Ke3 {[%clk 0:00:02.4]} 85... Nf8 {[%clk 0:00:02.9]} 86. Rg5+ {[%clk 0:00:02.1]}
86... Kh3 {[%clk 0:00:03.3]} 87. Ke4 {[%clk 0:00:02.2]} 87... Rb4+ {[%clk
0:00:02.9]} 88. Kf3 {[%clk 0:00:01.3]} 88... Rg4 {[%clk 0:00:03]} 89. Re5 {[%clk
0:00:01.3]} 89... Rxg3+ {[%clk 0:00:03.1]} 90. Kf2 {[%clk 0:00:01.9]} 90... Kxh4
{[%clk 0:00:02.9]} 91. Re8 {[%clk 0:00:02.4]} 91... Nh7 {[%clk 0:00:02.3]} 92.
Re4+ {[%clk 0:00:03.3]} 92... Rg4 {[%clk 0:00:02.7]} 93. Re1 {[%clk 0:00:04.2]}
93... Nf6 {[%clk 0:00:03.1]} 94. Re6 {[%clk 0:00:04.7]} 94... Kg5 {[%clk
0:00:04]} 95. Kf3 {[%clk 0:00:04.8]} 95... Rf4+ {[%clk 0:00:04.6]} 96. Kg3
{[%clk 0:00:05.2]} 96... Rf5 {[%clk 0:00:05.5]} 97. Ra6 {[%clk 0:00:04.2]} 97...
h4+ {[%clk 0:00:06.4]} 98. Kg2 {[%clk 0:00:04.2]} 98... Nh5 {[%clk 0:00:07.3]}
99. Ra4 {[%clk 0:00:03.7]} 99... Nf4+ {[%clk 0:00:08.2]} 100. Kf3 {[%clk
0:00:03.2]} 100... Nd5+ {[%clk 0:00:07.2]} 101. Kg2 {[%clk 0:00:03.2]} 101...
Rf4 {[%clk 0:00:07.7]} 102. Ra5 {[%clk 0:00:03.3]} 102... Rf5 {[%clk 0:00:07.9]}
103. Ra4 {[%clk 0:00:02.5]} 103... Kh5 {[%clk 0:00:08.4]} 104. Ra8 {[%clk
0:00:01.8]} 104... g5 {[%clk 0:00:08.8]} 105. Kh2 {[%clk 0:00:02.2]} 105... Kg4
{[%clk 0:00:08.8]} 106. Ra5 {[%clk 0:00:02.3]} 106... Rf4 {[%clk 0:00:09.4]}
107. Rxd5 {[%clk 0:00:01.8]} 107... Rf2+ {[%clk 0:00:09.4]} 108. Kg1 {[%clk
0:00:02.2]} 108... Ra2 {[%clk 0:00:08.3]} 109. Rd3 {[%clk 0:00:02.6]} 109... Ra4
{[%clk 0:00:07.3]} 110. Rc3 {[%clk 0:00:02.3]} 110... Kf4 {[%clk 0:00:06.1]}
111. Kh2 {[%clk 0:00:02.5]} 111... g4 {[%clk 0:00:06.5]} 112. Kg2 {[%clk
0:00:02.3]} 112... Rd4 {[%clk 0:00:06.1]} 113. Rc2 {[%clk 0:00:02.2]} 113... Re4
{[%clk 0:00:05.1]} 114. Rf2+ {[%clk 0:00:02.2]} 114... Kg5 {[%clk 0:00:05.6]}
115. Ra2 {[%clk 0:00:02.8]} 115... Rf4 {[%clk 0:00:05.4]} 116. Rc2 {[%clk
0:00:02.7]} 116... h3+ {[%clk 0:00:05.6]} 117. Kg3 {[%clk 0:00:02.1]} 117...
Rf3+ {[%clk 0:00:06]} 118. Kh2 {[%clk 0:00:02.5]} 118... Kh4 {[%clk 0:00:06.9]}
119. Kg1 {[%clk 0:00:02.8]} 119... Kg3 {[%clk 0:00:05.9]} 120. Rg2+ {[%clk
0:00:02.5]} 120... Kh4 {[%clk 0:00:05.3]} 121. Ra2 {[%clk 0:00:03]} 121... Rd3
{[%clk 0:00:05.5]} 122. Ra1 {[%clk 0:00:01.7]} 122... Rd2 {[%clk 0:00:05.5]}
123. Re1 {[%clk 0:00:01.9]} 123... Rg2+ {[%clk 0:00:03.7]} 124. Kh1 {[%clk
0:00:02.4]} 124... Ra2 {[%clk 0:00:04.3]} 125. Rc1 {[%clk 0:00:01.9]} 125... Ra4
{[%clk 0:00:04.5]} 126. Rb1 {[%clk 0:00:01.6]} 126... g3 {[%clk 0:00:04.7]} 127.
Rc1 {[%clk 0:00:02.2]} 127... Kg4 {[%clk 0:00:05]} 128. Rb1 {[%clk 0:00:02.6]}
128... Rf4 {[%clk 0:00:05.2]} 129. Kg1 {[%clk 0:00:01.9]} 129... Re4 {[%clk
0:00:04.7]} 130. Rc1 {[%clk 0:00:01.7]} 130... Kf3 {[%clk 0:00:05]} 131. Rf1+
{[%clk 0:00:01.7]} 131... Kg4 {[%clk 0:00:05.3]} 132. Ra1 {[%clk 0:00:02.2]}
132... Rb4 {[%clk 0:00:04.9]} 133. Rd1 {[%clk 0:00:02.4]} 133... Ra4 {[%clk
0:00:04.3]} 134. Rc1 {[%clk 0:00:02.6]} 134... h2+ {[%clk 0:00:03.5]} 135. Kg2
{[%clk 0:00:01.8]} 135... Ra2+ {[%clk 0:00:03.3]} 136. Kh1 {[%clk 0:00:02.4]}
136... Kh3 {[%clk 0:00:03.3]} 137. Rc3 {[%clk 0:00:02.9]} 137... Ra1+ {[%clk
0:00:02.8]} 0-1

[Event "*** Titled Tuesday Blitz"]
[Site "Chess.com"]
[Date "2021.02.09"]
[Round "5"]
[White "andriipalchuk"]
[Black "Sibelephant"]
[Result "0-1"]
[WhiteElo "2578"]
[BlackElo "3023"]
[TimeControl "180+1"]
[EndTime "10:51:34 PST"]
[Termination "Sibelephant won by resignation"]

1. d4 {[%clk 0:03:00.9]} 1... Nf6 {[%clk 0:02:59.5]} 2. c4 {[%clk 0:02:57.8]}
2... b6 {[%clk 0:02:59.8]} 3. Nf3 {[%clk 0:02:56.8]} 3... Bb7 {[%clk 0:02:59.9]}
4. g3 {[%clk 0:02:57.1]} 4... g6 {[%clk 0:03:00.1]} 5. Bg2 {[%clk 0:02:57]} 5...
Bg7 {[%clk 0:03:00.6]} 6. O-O {[%clk 0:02:57.7]} 6... O-O {[%clk 0:03:01]} 7. b3
{[%clk 0:02:57.4]} 7... c5 {[%clk 0:02:56.4]} 8. Bb2 {[%clk 0:02:57.8]} 8...
cxd4 {[%clk 0:02:56.8]} 9. Qxd4 {[%clk 0:02:53]} 9... d6 {[%clk 0:02:56.6]} 10.
Nc3 {[%clk 0:02:34.9]} 10... Ne4 {[%clk 0:02:56.3]} 11. Qe3 {[%clk 0:02:34.7]}
11... Nd7 {[%clk 0:02:56.7]} 12. Nd4 {[%clk 0:02:25.1]} 12... Nxc3 {[%clk
0:02:54.8]} 13. Bxb7 {[%clk 0:02:23.1]} 13... Bxd4 {[%clk 0:02:53.7]} 14. Qd3
{[%clk 0:02:18.2]} 14... Nc5 {[%clk 0:02:52.9]} 0-1

[Event "*** Titled Tuesday Blitz"]
[Site "Chess.com"]
[Date "2021.02.09"]
[Round "5"]
[White "profofchess"]
[Black "ecwinslow"]
[Result "1-0"]
[WhiteElo "2428"]
[BlackElo "2257"]
[TimeControl "180+1"]
[EndTime "10:51:48 PST"]
[Termination "profofchess won by resignation"]

1. e4 {[%clk 0:03:00.9]} 1... c5 {[%clk 0:02:59.3]} 2. Nf3 {[%clk 0:03:00.7]}
2... d6 {[%clk 0:02:59.3]} 3. d4 {[%clk 0:03:00.7]} 3... cxd4 {[%clk 0:02:59.9]}
4. Nxd4 {[%clk 0:03:01.5]} 4... Nf6 {[%clk 0:02:59.8]} 5. Nc3 {[%clk 0:03:02.2]}
5... g6 {[%clk 0:03:00.2]} 6. Be3 {[%clk 0:03:01.3]} 6... Bg7 {[%clk 0:03:00.7]}
7. f3 {[%clk 0:03:01.9]} 7... O-O {[%clk 0:03:00.8]} 8. Qd2 {[%clk 0:03:01.7]}
8... Nc6 {[%clk 0:03:01.3]} 9. O-O-O {[%clk 0:03:01.1]} 9... d5 {[%clk
0:03:01.3]} 10. exd5 {[%clk 0:03:01.4]} 10... Nxd5 {[%clk 0:02:59.5]} 11. Nxc6
{[%clk 0:03:01.7]} 11... bxc6 {[%clk 0:02:58.9]} 12. Bd4 {[%clk 0:03:02]} 12...
Bxd4 {[%clk 0:02:57]} 13. Qxd4 {[%clk 0:03:01.7]} 13... Qb6 {[%clk 0:02:56.9]}
14. Bc4 {[%clk 0:02:57.8]} 14... Qxd4 {[%clk 0:02:51.9]} 15. Rxd4 {[%clk
0:02:57]} 15... Nxc3 {[%clk 0:02:48.3]} 16. bxc3 {[%clk 0:02:56.7]} 16... a5
{[%clk 0:02:41.1]} 17. Re1 {[%clk 0:02:52.7]} 17... e6 {[%clk 0:02:29.3]} 18.
Rd6 {[%clk 0:02:50]} 18... Bb7 {[%clk 0:02:23.6]} 19. Rd7 {[%clk 0:02:46.6]}
19... Rfc8 {[%clk 0:02:21.6]} 20. Rxb7 {[%clk 0:02:44.6]} 1-0

[Event "*** Titled Tuesday Blitz"]
[Site "Chess.com"]
[Date "2021.02.09"]
[Round "5"]
[White "FMalexhdez"]
[Black "northridgehawk"]
[Result "0-1"]
[WhiteElo "2177"]
[BlackElo "2350"]
[TimeControl "180+1"]
[EndTime "10:52:52 PST"]
[Termination "northridgehawk won by resignation"]

1. e4 {[%clk 0:03:00.9]} 1... e5 {[%clk 0:02:59.3]} 2. Nf3 {[%clk 0:03:00.7]}
2... Nc6 {[%clk 0:02:59.3]} 3. Bc4 {[%clk 0:03:01.2]} 3... Nf6 {[%clk
0:02:58.2]} 4. d3 {[%clk 0:02:59.9]} 4... Bc5 {[%clk 0:02:58.3]} 5. c3 {[%clk
0:02:58.9]} 5... d6 {[%clk 0:02:58.2]} 6. Nbd2 {[%clk 0:02:57.1]} 6... a6 {[%clk
0:02:58.5]} 7. Bb3 {[%clk 0:02:53]} 7... Ba7 {[%clk 0:02:55.2]} 8. Qe2 {[%clk
0:02:50.4]} 8... O-O {[%clk 0:02:53.6]} 9. h3 {[%clk 0:02:49.3]} 9... Be6 {[%clk
0:02:53.1]} 10. g4 {[%clk 0:02:45.1]} 10... Re8 {[%clk 0:02:51.9]} 11. Nf1
{[%clk 0:02:39.5]} 11... d5 {[%clk 0:02:51.2]} 12. Ng3 {[%clk 0:02:35.3]} 12...
d4 {[%clk 0:02:49.5]} 13. g5 {[%clk 0:02:23.4]} 13... Nd7 {[%clk 0:02:48.8]} 14.
Nf5 {[%clk 0:02:22.6]} 14... Nc5 {[%clk 0:02:45.7]} 15. Bc2 {[%clk 0:02:08]}
15... Bxf5 {[%clk 0:02:37.9]} 16. exf5 {[%clk 0:02:06.3]} 16... e4 {[%clk
0:02:38.4]} 17. dxe4 {[%clk 0:01:34.1]} 17... d3 {[%clk 0:02:38.1]} 18. Bxd3
{[%clk 0:01:33.4]} 18... Nxd3+ {[%clk 0:02:37.1]} 19. Kf1 {[%clk 0:01:34.1]}
19... Nxf2 {[%clk 0:02:36.4]} 20. Rh2 {[%clk 0:01:28.8]} 20... Nxe4 {[%clk
0:02:36]} 0-1

[Event "*** Titled Tuesday Blitz"]
[Site "Chess.com"]
[Date "2021.02.09"]
[Round "5"]
[White "szachuspl"]
[Black "Godzillator"]
[Result "1-0"]
[WhiteElo "2523"]
[BlackElo "2268"]
[TimeControl "180+1"]
[EndTime "10:52:53 PST"]
[Termination "szachuspl won by resignation"]

1. d4 {[%clk 0:03:00.9]} 1... d5 {[%clk 0:02:59.7]} 2. c4 {[%clk 0:02:59.3]}
2... c6 {[%clk 0:02:59.6]} 3. Nf3 {[%clk 0:02:57.5]} 3... Nf6 {[%clk 0:02:59.7]}
4. Nc3 {[%clk 0:02:56.6]} 4... a6 {[%clk 0:02:59.2]} 5. a4 {[%clk 0:02:55.8]}
5... e6 {[%clk 0:02:58.7]} 6. Bg5 {[%clk 0:02:50.7]} 6... a5 {[%clk 0:02:56.7]}
7. e3 {[%clk 0:02:49.6]} 7... Na6 {[%clk 0:02:56.9]} 8. Be2 {[%clk 0:02:48.6]}
8... Nb4 {[%clk 0:02:56.9]} 9. O-O {[%clk 0:02:48.3]} 9... Be7 {[%clk
0:02:57.3]} 10. Ne5 {[%clk 0:02:47.8]} 10... O-O {[%clk 0:02:57.4]} 11. f4
{[%clk 0:02:47.9]} 11... b6 {[%clk 0:02:49.3]} 12. Rf3 {[%clk 0:02:44.5]} 12...
Ba6 {[%clk 0:02:44.2]} 13. cxd5 {[%clk 0:02:44.1]} 13... exd5 {[%clk 0:02:41.5]}
14. Bxa6 {[%clk 0:02:42.9]} 14... Rxa6 {[%clk 0:02:38.2]} 15. Rg3 {[%clk
0:02:42.7]} 15... g6 {[%clk 0:02:36.3]} 16. h4 {[%clk 0:02:41.1]} 16... Ne4
{[%clk 0:02:24.2]} 17. Nxe4 {[%clk 0:02:36.6]} 17... dxe4 {[%clk 0:02:24.1]} 18.
Bxe7 {[%clk 0:02:33.4]} 18... Qxe7 {[%clk 0:02:22.5]} 19. h5 {[%clk 0:02:34]}
19... c5 {[%clk 0:02:15.6]} 20. hxg6 {[%clk 0:02:28.9]} 20... fxg6 {[%clk
0:02:14.5]} 21. Nxg6 {[%clk 0:02:21.4]} 21... hxg6 {[%clk 0:02:14]} 22. Rxg6+
{[%clk 0:02:21.6]} 22... Kf7 {[%clk 0:02:10.5]} 23. Qh5 {[%clk 0:02:22.1]} 23...
Rh8 {[%clk 0:02:02.9]} 24. Rh6+ {[%clk 0:02:20.4]} 1-0